bitfinex-derivatives/quotes_SOLF0:USTF0_20241008
["timestamp","ask_amount","ask_price","bid_price","bid_amount"]
[1728376520695,12.16908103,143.58,143.56,11.21518259]
[1728376520893,12.16908103,143.58,143.55,10.71]
[1728376521086,12.16908103,143.58,143.56,5.99048438]
[1728376521287,12.16908103,143.58,143.55,10.71]
[1728376521486,12.16908103,143.58,143.56,11.21498206]
[1728376521778,12.16908103,143.58,143.55,10.71]
[1728376521991,12.16908103,143.58,143.56,11.21024997]
[1728376522190,5.12,143.58,143.56,3.4836]
[1728376522579,5.12,143.58,143.55,10.71]
[1728376522795,5.12,143.58,143.56,11.20943326]
[1728376522990,5.12,143.58,143.55,14.1938]
[1728376523185,5.12,143.58,143.56,5.98601633]
[1728376523380,14.1931,143.59,143.55,14.1938]
[1728376523580,6.5008,143.61,143.56,11.20654174]
[1728376523788,3.4829,143.6,143.56,3.4836]
[1728376524085,14.1929,143.6,143.56,3.4836]
[1728376524694,14.1929,143.6,143.55,10.71]
[1728376524695,10.71,143.6,143.55,10.71]
[1728376524892,14.1927,143.6,143.57,3.4834]
[1728376525799,3.4827,143.6,143.57,3.4834]
[1728376526183,3.4825,143.61,143.59,10.71]
[1728376529897,3.60702,143.63,143.6,3.4826]
[1728376530303,3.60702,143.63,143.6,14.1926]
[1728376530790,3.60702,143.63,143.6,10.71]
[1728376531301,3.4823,143.62,143.6,10.71]
[1728376532397,3.60712,143.63,143.6,10.71]
[1728376532598,0.12502,143.63,143.61,10.71]
[1728376532996,0.12502,143.63,143.61,14.1923]
[1728376533498,0.12502,143.63,143.62,10.71]
[1728376533698,0.12502,143.63,143.62,14.1922]
[1728376534101,0.12502,143.63,143.62,20.17078923]
[1728376534298,3.4813,143.67,143.63,3.4818]
[1728376534503,3.4813,143.67,143.65,10.71]
[1728376535199,6.90429512,143.67,143.65,10.71]
[1728376535789,6.90429512,143.67,143.64,10.71]
[1728376535989,0.12502,143.69,143.65,10.71]
[1728376536406,0.12502,143.69,143.66,10.71]
[1728376536992,3.63470408,143.69,143.66,10.71]
[1728376537200,3.63470408,143.69,143.65,10.71]
[1728376537201,14.34470408,143.69,143.65,10.71]
[1728376537593,3.4812,143.67,143.65,10.71]
[1728376544104,3.4813,143.66,143.65,10.71]
[1728376544307,14.34470408,143.69,143.62,2.7999]
[1728376544603,14.34470408,143.69,143.64,10.71]
[1728376545401,3.4815,143.65,143.64,10.71]
[1728376550395,10.71,143.65,143.59,92.22722279]
[1728376550606,3.4825,143.61,143.59,92.22722279]
[1728376550806,3.4825,143.61,143.58,10.71]
[1728376550807,3.39666917,143.61,143.58,10.71]
[1728376551110,10.71,143.62,143.59,5.990723]
[1728376551307,3.483,143.59,143.58,10.71]
[1728376551506,3.483,143.59,143.58,21.9259774]
[1728376551914,3.483,143.59,143.58,16.70137466]
[1728376552305,3.56269801,143.61,143.58,16.70137466]
[1728376552503,3.4828,143.6,143.58,10.71]
[1728376553006,3.4828,143.6,143.57,0.12502]
[1728376553007,1.4352,143.64,143.59,10.71]
[1728376553215,6.5451,143.66,143.63,10.71]
[1728376553505,6.5451,143.66,143.62,10.71]
[1728376553706,3.4819,143.64,143.62,10.71]
[1728376554014,3.40457259,143.65,143.62,10.71]
[1728376554917,6.88617259,143.65,143.62,10.71]
[1728376555420,8.6014,143.66,143.64,10.71]
[1728376555915,12.09485822,143.66,143.64,10.71]
[1728376556416,8.61345822,143.66,143.64,10.71]
[1728376556717,3.4815,143.65,143.64,10.71]
[1728376558112,5.12,143.67,143.64,10.71]
[1728376558316,3.4814,143.66,143.64,10.71]
[1728376560419,8.59604946,143.67,143.64,10.71]
[1728376560618,3.4815,143.66,143.64,10.71]
[1728376560917,8.59604946,143.67,143.64,10.71]
[1728376561118,12.07714946,143.67,143.64,10.71]
[1728376561417,8.59604946,143.67,143.64,10.71]
[1728376563419,12.07704946,143.67,143.64,10.71]
[1728376567518,3.4813,143.66,143.64,10.71]
[1728376567714,19.30604946,143.67,143.61,3.4824]
[1728376568126,19.30604946,143.67,143.62,10.71]
[1728376568325,3.4814,143.66,143.62,10.71]
[1728376569330,3.4815,143.65,143.62,10.71]
[1728376569628,19.30604946,143.67,143.62,10.71]
[1728376570028,3.4816,143.65,143.62,10.71]
[1728376571440,19.30604946,143.67,143.62,10.71]
[1728376572341,3.4817,143.65,143.62,10.71]
[1728376573040,3.4821,143.63,143.59,3.4829]
[1728376573231,10.71,143.65,143.6,10.71]
[1728376573540,15.83,143.64,143.6,10.71]
[1728376574337,3.482,143.63,143.6,10.71]
[1728376575337,3.4823,143.62,143.6,10.71]
[1728376576445,3.4821,143.63,143.6,10.71]
[1728376576638,19.29389158,143.64,143.6,10.71]
[1728376577038,3.4822,143.63,143.6,10.71]
[1728376577836,22.77569158,143.64,143.6,14.1926]
[1728376578033,1.3688,143.68,143.63,10.71]
[1728376578350,20.652941,143.68,143.63,10.71]
[1728376578548,20.6798,143.68,143.64,3.4816]
[1728376578845,13.38215283,143.68,143.65,10.71]
[1728376579036,8.26215283,143.68,143.65,10.71]
[1728376580033,6.89325283,143.68,143.64,14.1916]
[1728376580231,17.60325283,143.68,143.64,10.71]
[1728376580948,3.4811,143.67,143.64,10.71]
[1728376587637,14.12235283,143.68,143.64,14.1917]
[1728376587845,17.60325283,143.68,143.64,14.1917]
[1728376589047,6.89325283,143.68,143.65,3.4815]
[1728376589252,3.41235283,143.68,143.65,3.4815]
[1728376589641,3.41235283,143.68,143.65,14.1915]
[1728376589848,5.24502,143.69,143.65,10.71]
[1728376590053,5.24502,143.69,143.67,3.4809]
[1728376590350,0.12502,143.69,143.68,10.71]
[1728376590647,0.12502,143.69,143.68,14.1908]
[1728376591848,0.12502,143.69,143.68,19.42087937]
[1728376592447,0.12502,143.69,143.68,25.41579176]
[1728376594160,0.12502,143.69,143.68,14.70579176]
[1728376594455,0.12502,143.69,143.68,5.99491239]
[1728376596873,10.83502,143.69,143.63,2.7673]
[1728376597158,10.71,143.68,143.64,21.94119011]
[1728376597353,14.1909,143.68,143.65,11.23119011]
[1728376597661,14.1909,143.68,143.66,5.99829435]
[1728376597846,3.4809,143.68,143.65,3.4815]
[1728376598049,3.4809,143.68,143.66,5.99897854]
[1728376598249,3.4809,143.68,143.65,3.4815]
[1728376598649,3.4809,143.68,143.66,5.99971753]
[1728376598850,3.4809,143.68,143.65,3.4815]
[1728376599049,3.4809,143.68,143.66,6.00081877]
[1728376599251,10.83502,143.69,143.64,10.71]
[1728376599448,10.83502,143.69,143.65,11.23749674]
[1728376599652,10.83502,143.69,143.66,6.00115101]
[1728376599959,10.83502,143.69,143.64,10.71]
[1728376600161,10.83502,143.69,143.65,11.23756656]
[1728376600459,3.4809,143.68,143.66,6.00115101]
[1728376600660,10.83502,143.69,143.65,14.1913]
[1728376600960,14.31572,143.69,143.66,11.23796508]
[1728376601161,14.31572,143.69,143.65,14.1913]
[1728376601459,14.31572,143.69,143.66,11.23818202]
[1728376601655,14.31572,143.69,143.65,14.1913]
[1728376601857,14.31572,143.69,143.66,11.23829767]
[1728376602163,14.31572,143.69,143.65,14.1913]
[1728376602349,14.31572,143.69,143.66,11.23864039]
[1728376602549,10.83502,143.69,143.65,14.1913]
[1728376602760,3.4811,143.67,143.66,11.23869753]
[1728376603059,3.4811,143.67,143.64,10.71]
[1728376603261,3.4811,143.67,143.65,11.24021087]
[1728376603460,14.1909,143.68,143.64,14.1917]
[1728376603762,14.1909,143.68,143.65,11.24015462]
[1728376603951,14.1909,143.68,143.64,14.1917]
[1728376604265,14.1909,143.68,143.65,11.23962228]
[1728376604464,14.1909,143.68,143.64,14.1917]
[1728376604657,14.1909,143.68,143.65,11.23956515]
[1728376604852,14.1909,143.68,143.64,14.1917]
[1728376605065,14.1909,143.68,143.65,11.23956515]
[1728376605262,10.71,143.68,143.63,13.4773]
[1728376605568,3.4813,143.66,143.64,11.23964587]
[1728376605863,3.4813,143.66,143.65,11.23964587]
[1728376606059,3.4812,143.67,143.63,14.1919]
[1728376606261,3.4812,143.67,143.64,11.24012934]
[1728376606262,14.1912,143.67,143.64,11.24012934]
[1728376606458,14.1912,143.67,143.65,11.24012934]
[1728376606659,14.1912,143.67,143.63,14.1919]
[1728376606974,14.1912,143.67,143.64,11.24181158]
[1728376607263,14.1912,143.67,143.65,11.24181158]
[1728376607458,14.1912,143.67,143.63,14.1919]
[1728376607665,14.1912,143.67,143.64,11.24256829]
[1728376607866,14.1912,143.67,143.63,14.1919]
[1728376608058,14.1912,143.67,143.64,11.24265883]
[1728376608254,14.1912,143.67,143.65,6.00381771]
[1728376608467,14.1912,143.67,143.63,14.1919]
[1728376608668,14.1912,143.67,143.64,11.24238226]
[1728376608862,14.1912,143.67,143.65,6.00368147]
[1728376609064,14.1912,143.67,143.63,14.1919]
[1728376609571,14.1912,143.67,143.64,11.24235648]
[1728376609767,14.1912,143.67,143.65,6.00364517]
[1728376609967,14.1912,143.67,143.63,14.1919]
[1728376610170,14.1912,143.67,143.64,11.2424444]
[1728376610461,14.1912,143.67,143.65,6.00369212]
[1728376610767,14.1912,143.67,143.64,3.4817]
[1728376610967,14.1912,143.67,143.65,6.00374485]
[1728376611273,14.1912,143.67,143.64,3.4817]
[1728376611566,10.71,143.67,143.65,6.0037995]
[1728376611763,0.12502,143.69,143.65,6.0037995]
[1728376611764,3.4809,143.68,143.65,3.4814]
[1728376611960,14.1909,143.68,143.66,6.00281517]
[1728376612165,14.1909,143.68,143.65,3.4814]
[1728376612367,14.1909,143.68,143.66,6.00249412]
[1728376612566,14.1909,143.68,143.65,3.4814]
[1728376612771,14.1909,143.68,143.66,6.00253961]
[1728376612970,14.1909,143.68,143.65,3.4814]
[1728376613171,10.71,143.68,143.66,6.00253961]
[1728376613371,10.71,143.68,143.65,3.4814]
[1728376613665,3.60562,143.69,143.66,11.23972174]
[1728376613872,10.71,143.68,143.65,3.4814]
[1728376614167,10.71,143.68,143.66,11.2397227]
[1728376614367,3.60562,143.69,143.65,3.4814]
[1728376614564,0.12502,143.69,143.66,11.23899956]
[1728376614768,5.24502,143.69,143.66,6.00189506]
[1728376614979,5.24502,143.69,143.67,11.23784584]
[1728376615175,5.24502,143.69,143.65,10.71]
[1728376615375,5.24502,143.69,143.66,11.23641115]
[1728376615562,5.24502,143.69,143.67,11.23641115]
[1728376615767,5.24502,143.69,143.65,10.71]
[1728376616073,5.24502,143.69,143.67,3.4809]
[1728376616274,5.24502,143.69,143.65,10.71]
[1728376616466,5.24502,143.69,143.66,11.23623858]
[1728376616662,5.24502,143.69,143.67,14.71713858]
[1728376616871,5.24502,143.69,143.67,3.4809]
[1728376620178,0.12502,143.69,143.67,3.4809]
[1728376620369,0.12502,143.69,143.67,10.71]
[1728376620678,0.12502,143.69,143.64,2.6718]
[1728376620679,0.12502,143.69,143.68,25.42403785]
[1728376621268,0.12502,143.69,143.68,19.42512691]
[1728376621476,0.12502,143.69,143.68,25.42343261]
[1728376625491,0.12502,143.69,143.68,14.1908]
[1728376625679,0.12502,143.69,143.68,25.42130805]
[1728376625882,0.12502,143.69,143.68,14.1908]
[1728376626075,0.12502,143.69,143.68,25.42202959]
[1728376626281,0.12502,143.69,143.68,19.4241454]
[1728376626484,0.12502,143.69,143.68,25.42202959]
[1728376627386,0.12502,143.69,143.68,14.71202959]
[1728376627587,0.12502,143.69,143.68,25.42202959]
[1728376627890,0.12502,143.69,143.68,14.71202959]
[1728376628078,0.12502,143.69,143.68,25.42202959]
[1728376628582,0.12502,143.69,143.68,11.23122959]
[1728376629184,3.60552,143.69,143.68,11.23122959]
[1728376629383,3.60552,143.69,143.66,3.4812]
[1728376629585,0.12502,143.69,143.65,10.71]
[1728376629783,0.12502,143.69,143.66,11.23359508]
[1728376629990,0.12502,143.69,143.66,3.4812]
[1728376631384,3.60572,143.69,143.66,3.4812]
[1728376634195,0.12502,143.69,143.64,2.6718]
[1728376634391,0.12502,143.69,143.65,11.23612293]
[1728376634590,0.12502,143.69,143.66,11.23584216]
[1728376634885,10.71,143.68,143.63,10.71]
[1728376635091,10.71,143.68,143.64,11.23787401]
[1728376635299,3.481,143.67,143.65,11.23787401]
[1728376635594,10.71,143.68,143.63,10.71]
[1728376635794,3.4816,143.65,143.64,5.23629556]
[1728376635997,3.4816,143.65,143.64,11.23730074]
[1728376636194,3.4816,143.65,143.62,14.1921]
[1728376636399,3.4816,143.65,143.63,11.23922544]
[1728376636590,3.4816,143.65,143.64,11.23922544]
[1728376637993,3.4814,143.66,143.64,11.23922544]
[1728376638193,3.4814,143.66,143.62,14.1921]
[1728376638393,3.4814,143.66,143.63,11.24062755]
[1728376638595,3.4814,143.66,143.64,11.24062755]
[1728376638788,3.4814,143.66,143.62,14.1921]
[1728376638994,3.4814,143.66,143.63,11.24107337]
[1728376639194,3.4814,143.66,143.64,6.00294978]
[1728376639401,3.4814,143.66,143.64,11.24109495]
[1728376639703,3.4814,143.66,143.62,14.1921]
[1728376640002,3.4814,143.66,143.63,11.24137496]
[1728376640203,3.4814,143.66,143.64,11.24137496]
[1728376640501,3.4814,143.66,143.62,14.1921]
[1728376640696,3.4814,143.66,143.63,11.24187388]
[1728376641005,3.4815,143.65,143.64,11.24187388]
[1728376641299,3.4815,143.65,143.64,6.00337373]
[1728376642296,10.71,143.65,143.59,13.4192]
[1728376642506,10.71,143.63,143.6,14.73063628]
[1728376642698,10.71,143.63,143.61,11.24803628]
[1728376642998,10.71,143.63,143.57,92.36475031]
[1728376642999,3.4822,143.62,143.58,10.71]
[1728376643211,3.4822,143.62,143.59,14.73427993]
[1728376643212,10.71,143.62,143.59,14.73427993]
[1728376643395,14.21077144,143.62,143.6,11.25147993]
[1728376643596,14.21077144,143.62,143.61,11.25147993]
[1728376644002,17.69297144,143.62,143.61,11.25147993]
[1728376644202,17.69297144,143.62,143.61,6.00840806]
[1728376644401,17.69297144,143.62,143.61,11.25216597]
[1728376644702,14.21077144,143.62,143.61,11.25216597]
[1728376645205,14.21077144,143.62,143.61,6.00840806]
[1728376645397,14.21077144,143.62,143.61,11.25183899]
[1728376645595,14.21077144,143.62,143.61,6.00840806]
[1728376646507,14.21077144,143.62,143.59,3.4828]
[1728376646699,14.21077144,143.62,143.6,11.25146002]
[1728376646896,14.21077144,143.62,143.59,3.4828]
[1728376647092,14.21077144,143.62,143.61,6.00836336]
[1728376647604,14.21077144,143.62,143.61,6.00754678]
[1728376648000,17.69297144,143.62,143.61,6.00754678]
[1728376648197,14.21077144,143.62,143.57,92.36475031]
[1728376648404,14.21077144,143.62,143.58,11.25105264]
[1728376648701,3.4826,143.61,143.59,11.25105264]
[1728376648901,3.4826,143.61,143.6,6.00811929]
[1728376650207,3.4826,143.61,143.57,92.36475031]
[1728376650405,3.50077144,143.62,143.58,11.24628611]
[1728376650718,10.71,143.65,143.6,10.71]
[1728376651007,5.1,143.64,143.61,14.72858611]
[1728376651203,3.56070085,143.63,143.61,3.4823]
[1728376651605,3.56070085,143.63,143.6,10.71]
[1728376651807,3.56070085,143.63,143.61,14.72532433]
[1728376651998,3.4811,143.67,143.62,10.71]
[1728376652204,15.81,143.67,143.64,3.4816]
[1728376652804,15.81,143.67,143.64,3.4817]
[1728376653810,19.291,143.67,143.63,14.1919]
[1728376654107,19.291,143.67,143.63,3.4819]
[1728376654910,15.81,143.67,143.63,3.4819]
[1728376655097,3.4813,143.66,143.63,3.4819]
[1728376655506,14.1913,143.66,143.63,3.4819]
[1728376657416,10.71,143.66,143.63,3.4819]
[1728376660009,14.1913,143.66,143.63,3.4819]
[1728376664707,14.1913,143.66,143.6,5.1]
[1728376664912,3.4818,143.64,143.61,11.24187167]
[1728376665209,10.71,143.64,143.62,6.00335249]
[1728376665410,14.1919,143.64,143.6,14.1925]
[1728376665611,14.1919,143.64,143.61,11.24411601]
[1728376665814,14.1919,143.64,143.62,11.24411601]
[1728376666019,14.1919,143.64,143.61,3.4824]
[1728376666812,14.1919,143.64,143.62,6.004211]
[1728376667009,14.1919,143.64,143.61,3.4824]
[1728376667221,14.1919,143.64,143.62,6.004211]
[1728376667516,14.1919,143.64,143.61,3.4824]
[1728376667717,14.1919,143.64,143.62,6.00399682]
[1728376668018,14.1919,143.64,143.61,3.4824]
[1728376668019,3.4819,143.64,143.61,3.4824]
[1728376668222,3.4819,143.64,143.62,11.24303255]
[1728376668521,3.4819,143.64,143.61,3.4824]
[1728376668724,3.4819,143.64,143.62,11.24254542]
[1728376668921,3.4819,143.64,143.61,3.4824]
[1728376669118,3.4819,143.64,143.62,6.00376903]
[1728376669321,3.4819,143.64,143.61,3.4824]
[1728376669622,3.4819,143.64,143.62,6.00385361]
[1728376669829,3.4819,143.64,143.61,3.4824]
[1728376670021,3.4819,143.64,143.62,6.00385361]
[1728376670222,3.4819,143.64,143.61,3.4824]
[1728376670421,3.4819,143.64,143.62,6.00370281]
[1728376670623,3.4819,143.64,143.61,3.4824]
[1728376670822,1.3724,143.68,143.62,6.00373506]
[1728376671021,3.4815,143.66,143.62,3.482]
[1728376671227,14.1915,143.66,143.62,3.482]
[1728376677525,10.71,143.66,143.61,10.71]
[1728376677716,10.71,143.66,143.63,3.482]
[1728376679924,14.1916,143.65,143.6,10.71]
[1728376680130,14.1916,143.65,143.61,11.24122144]
[1728376680334,14.1916,143.65,143.61,3.4823]
[1728376680524,14.1916,143.65,143.62,6.00257916]
[1728376680723,14.1916,143.65,143.63,11.24040645]
[1728376680931,14.1916,143.65,143.61,3.4823]
[1728376681131,14.1916,143.65,143.62,11.24035707]
[1728376681327,14.1916,143.65,143.63,11.24035707]
[1728376681632,14.1916,143.65,143.61,3.4823]
[1728376681833,14.1916,143.65,143.62,11.24031398]
[1728376682027,5.1,143.67,143.63,11.24031398]
[1728376682232,10.71,143.66,143.61,10.71]
[1728376682433,10.71,143.66,143.62,11.23953085]
[1728376682634,10.71,143.65,143.63,11.23953085]
[1728376682832,10.71,143.65,143.61,10.71]
[1728376683036,10.71,143.65,143.62,11.23943621]
[1728376683328,10.71,143.65,143.63,11.23943621]
[1728376683536,10.71,143.64,143.59,10.71]
[1728376683736,14.1923,143.62,143.6,11.24201763]
[1728376683930,17.64630821,143.62,143.58,1.4356]
[1728376684128,17.64630821,143.62,143.59,11.24432427]
[1728376684329,17.64630821,143.62,143.6,11.24432427]
[1728376684534,14.16400821,143.62,143.59,3.4829]
[1728376684729,5.1,143.64,143.62,3.4821]
[1728376684931,5.1,143.64,143.61,10.71]
[1728376685136,5.1,143.64,143.62,11.21739845]
[1728376685439,5.1,143.64,143.63,3.482]
[1728376686331,5.1,143.64,143.6,10.71]
[1728376686531,10.71,143.63,143.61,14.70078373]
[1728376686830,10.71,143.63,143.61,3.4823]
[1728376688541,10.71,143.63,143.62,3.4822]
[1728376688729,14.25105479,143.63,143.58,1.4356]
[1728376688933,14.25105479,143.63,143.59,21.93023867]
[1728376689133,14.25105479,143.63,143.6,11.22023867]
[1728376689437,14.25105479,143.63,143.61,14.70253867]
[1728376689639,14.25105479,143.63,143.61,3.4823]
[1728376689838,14.25105479,143.63,143.59,10.71]
[1728376690040,15.81,143.64,143.62,3.4822]
[1728376691847,5.1,143.64,143.62,3.4822]
[1728376692150,5.1,143.64,143.63,3.482]
[1728376692341,5.1,143.64,143.61,10.71]
[1728376692649,5.1,143.64,143.62,14.70524777]
[1728376692853,5.1,143.64,143.62,3.4821]
[1728376693251,5.1,143.64,143.61,10.71]
[1728376693455,5.1,143.64,143.62,5.98289772]
[1728376693647,5.1,143.64,143.61,3.4824]
[1728376693850,14.12291523,143.63,143.62,5.9833209]
[1728376694053,14.12291523,143.63,143.58,12.1456]
[1728376694354,14.12291523,143.63,143.59,11.23274104]
[1728376694554,17.60491523,143.63,143.6,14.71534104]
[1728376694739,17.60491523,143.63,143.61,11.23274104]
[1728376695056,14.12291523,143.63,143.6,3.4826]
[1728376695253,14.12291523,143.63,143.61,11.23487653]
[1728376695473,14.12291523,143.63,143.6,3.4826]
[1728376695769,14.12291523,143.63,143.61,11.23686822]
[1728376695973,14.12291523,143.63,143.6,3.4826]
[1728376696162,14.12291523,143.63,143.61,11.23682261]
[1728376696368,14.12291523,143.63,143.6,3.4826]
[1728376696566,14.12291523,143.63,143.61,11.23900455]
[1728376696767,14.12291523,143.63,143.6,3.4826]
[1728376696969,10.71,143.62,143.61,11.23901764]
[1728376697170,10.71,143.62,143.59,3.4828]
[1728376697466,10.71,143.62,143.6,5.99238975]
[1728376697769,10.71,143.62,143.61,11.24311938]
[1728376698771,10.71,143.62,143.61,5.25072963]
[1728376700264,10.71,143.62,143.6,3.4826]
[1728376700464,10.71,143.62,143.61,5.2528198]
[1728376702459,3.41291523,143.63,143.61,5.2528198]
[1728376702664,14.12291523,143.63,143.6,3.4826]
[1728376702863,14.12291523,143.63,143.61,5.25380465]
[1728376703072,14.12291523,143.63,143.6,3.4826]
[1728376703272,14.12291523,143.63,143.61,5.25371022]
[1728376703463,14.12291523,143.63,143.6,3.4826]
[1728376703663,14.12291523,143.63,143.61,5.25443683]
[1728376703869,14.12291523,143.63,143.6,3.4826]
[1728376704172,14.12291523,143.63,143.61,8.736979]
[1728376704368,3.41291523,143.63,143.62,5.254479]
[1728376707064,3.41291523,143.63,143.62,5.25419911]
[1728376707371,3.41291523,143.63,143.61,3.4825]
[1728376707572,3.41291523,143.63,143.62,5.25442956]
[1728376710267,3.41291523,143.63,143.61,3.4825]
[1728376710568,3.4814,143.66,143.63,3.482]
[1728376710764,15.81,143.65,143.64,5.25531037]
[1728376710968,1.3724,143.68,143.64,5.25531037]
[1728376711173,10.71,143.66,143.64,3.4816]
[1728376714070,10.71,143.66,143.6,10.71]
[1728376714273,10.71,143.66,143.63,3.4819]
[1728376714481,10.71,143.66,143.64,5.25560349]
[1728376714772,10.71,143.66,143.63,3.4819]
[1728376714971,10.71,143.66,143.64,5.25562628]
[1728376715172,10.71,143.66,143.63,3.4819]
[1728376715374,10.71,143.66,143.64,5.25568807]
[1728376715570,10.71,143.66,143.63,3.4819]
[1728376715777,10.71,143.66,143.64,5.25567937]
[1728376715985,10.71,143.66,143.63,3.4819]
[1728376716278,10.71,143.66,143.64,5.25576719]
[1728376716578,10.71,143.66,143.63,3.4819]
[1728376716779,10.71,143.66,143.64,5.25577165]
[1728376716981,10.71,143.66,143.63,3.4819]
[1728376717383,10.71,143.66,143.64,5.25642865]
[1728376717680,10.71,143.65,143.63,3.4819]
[1728376717975,10.71,143.65,143.64,5.25662557]
[1728376721477,10.71,143.66,143.64,8.73822557]
[1728376721783,10.71,143.66,143.65,5.25662557]
[1728376722276,5.1,143.67,143.65,5.25662557]
[1728376722477,3.4816,143.65,143.61,3.4823]
[1728376722779,10.71,143.65,143.62,5.25991443]
[1728376723078,10.71,143.63,143.6,3.4825]
[1728376723279,14.16063109,143.63,143.61,5.26239043]
[1728376723486,14.16063109,143.63,143.62,5.26239043]
[1728376723972,14.16063109,143.63,143.62,5.2622249]
[1728376727086,14.16063109,143.63,143.61,3.4824]
[1728376727279,14.16063109,143.63,143.62,5.26381251]
[1728376728283,17.64263109,143.63,143.62,5.26381251]
[1728376728594,14.16063109,143.63,143.57,0.12502]
[1728376728780,10.71,143.59,143.57,3.60832]
[1728376729091,10.71,143.6,143.57,3.60832]
[1728376729278,10.71,143.6,143.58,3.4831]
[1728376729480,8.59478071,143.61,143.58,3.4831]
[1728376729685,19.30478071,143.61,143.58,3.4831]
[1728376730488,19.30478071,143.61,143.57,10.83502]
[1728376730698,5.1,143.61,143.59,3.4828]
[1728376732694,5.1,143.61,143.57,10.83502]
[1728376732695,15.81,143.61,143.57,10.83502]
[1728376733489,15.81,143.61,143.59,3.4828]
[1728376734687,5.1,143.61,143.59,3.4828]
[1728376735189,5.1,143.61,143.6,3.4827]
[1728376735781,14.18771431,143.62,143.6,3.4827]
[1728376736683,14.18771431,143.62,143.59,3.4829]
[1728376739191,14.18771431,143.62,143.6,3.4826]
[1728376739889,10.71,143.62,143.6,3.4826]
[1728376740089,10.71,143.62,143.61,3.4825]
[1728376740590,10.71,143.62,143.58,10.71]
[1728376741396,10.71,143.62,143.6,3.4826]
[1728376745094,3.44045118,143.63,143.6,3.4826]
[1728376745302,14.15045118,143.63,143.61,3.4824]
[1728376747404,3.44045118,143.63,143.61,3.4824]
[1728376747605,14.15045118,143.63,143.61,3.4824]
[1728376747904,3.44045118,143.63,143.61,3.4824]
[1728376749096,5.1,143.66,143.64,3.4816]
[1728376749300,5.1,143.67,143.64,3.4816]
[1728376749603,5.1,143.67,143.65,3.4814]
[1728376750299,10.71,143.68,143.65,3.4814]
[1728376750809,8.70572,143.69,143.65,3.4814]
[1728376751097,10.71,143.68,143.65,3.4814]
[1728376751707,10.71,143.68,143.64,10.71]
[1728376752199,15.93502,143.69,143.65,10.71]
[1728376752501,15.93502,143.69,143.62,1.4143]
[1728376752703,10.71,143.68,143.62,1.4143]
[1728376752896,10.71,143.68,143.64,10.71]
[1728376753490,10.71,143.68,143.66,3.4811]
[1728376754602,10.71,143.68,143.65,3.4815]
[1728376755199,10.71,143.68,143.64,10.71]
[1728376755396,10.71,143.68,143.65,3.4815]
[1728376757004,10.71,143.67,143.64,3.4816]
[1728376757197,10.71,143.67,143.63,10.71]
[1728376757395,14.1908,143.68,143.63,10.71]
[1728376757598,10.71,143.68,143.63,10.71]
[1728376757799,10.71,143.68,143.66,3.4812]
[1728376760612,8.70562,143.69,143.66,3.4812]
[1728376760797,10.71,143.68,143.66,3.4812]
[1728376763703,5.22502,143.69,143.64,10.71]
[1728376763901,5.22502,143.69,143.67,3.481]
[1728376764808,5.22502,143.69,143.66,14.1911]
[1728376765012,15.93502,143.69,143.66,3.4811]
[1728376769716,10.83502,143.69,143.66,3.4811]
[1728376775421,14.31572,143.69,143.66,3.4811]
[1728376777318,10.83502,143.69,143.66,14.1911]
[1728376789734,0.12502,143.69,143.66,10.71]
[1728376789930,0.12502,143.69,143.62,1.4143]
[1728376789931,0.12502,143.69,143.68,3.4808]
[1728376790724,0.12502,143.69,143.68,14.1908]
[1728376792137,0.12502,143.69,143.68,8.87025395]